[Event "Romanian Championship 2024"]
[Site "Eforie Nord"]
[Date "2024.02.25"]
[Round "2.3"]
[White "Tudor, Henry Edward"]
[Black "Gavrilescu, David"]
[Result "0-1"]
[ECO "E47"]
[WhiteElo "2239"]
[BlackElo "2523"]
[Annotator "TA"]
[PlyCount "104"]
[EventDate "2024.02.24"]
[EventType "swiss"]
[EventCountry "ROU"]
[SourceTitle "playchess.com"]
[Source "ChessBase"]
[SourceQuality "1"]
[TimeControl "40/5400+30:900+30"]

{[%evp 9,104,12,23,-22,-16,-18,-8,-42,-56,-65,-47,-44,-49,-46,41,55,67,-25,-20,-25,-39,-30,0,3,42,-285,-255,-424,-409,-441,-408,-422,-435,-396,-383,-364,-122,-125,-125,-129,-95,-95,-102,-102,-104,-96,-107,-322,-331,-312,-306,-299,-307,-357,-357,-354,-306,-329,-311,-418,-173,-541,-545,-546,-525,-518,-475,-548,-545,-539,-491,-528,-512,-500,-539,-703,-655,-883,-866,-766,-749,-712,-654,-1300,-791,-29971,-29972,-29973,-29974,-29978,-29979,-29979,-29980,-29988,-29989,-29990,-29991]} 1. d4 {[%emt 0:00:02]} Nf6 {[%emt 0:00:33]} 2. c4 {[%emt 0:00:04]} e6 {[%emt 0:00:16][%cal Be7e6,Be6e5,Be5e4][%mdl 32]} 3. Nc3 {[%emt 0:00:08]} Bb4 {[%emt 0:00:29]} 4. e3 {[%emt 0:00:13]} O-O {[%emt 1:31:12]} 5. Bd3 {[%emt 0:00:40]} Re8 {[%emt 0:00:00]} 6. a3 {[%emt 0:21:08]} Bxc3+ {[%emt 0:00:00]} 7. bxc3 {[%emt 0:01:42]} e5 {[%emt 0:00:00]} 8. Ne2 {[%emt 0:13:26] The position is equal.} e4 {[%emt 0:00:00]} 9. Bb1 {[%emt 0:04:21]} b6 {[%emt 0:00:00]} 10. Ng3 {[%emt 0:05:03]} Ba6 {[%emt 0:00:00]} 11. f3 {[%emt 0:03:39]} d5 {[%emt 0:00:00]} (11... Bxc4 $15 12. fxe4 d6) 12. cxd5 $14 {[%emt 0:18:33]} exf3 {[%emt 0:00:00]} 13. gxf3 {[%emt 0:02:06]} (13. Qxf3 $14 Qxd5 14. Kf2 (14. e4 Nxe4 15. Nxe4 f5 $15)) 13... Nxd5 $11 {[%emt 0:00:00]} 14. Qc2 {[%emt 0:02:29]} Qh4 {[%emt 0:00:00]} 15. Kf2 {[%emt 0:02:22]} Nd7 {[%emt 0:00:00][%cal Bb8d7,Bd7f6,Bf6h5][%mdl 32]} 16. e4 {[%emt 0:14:56]} N7f6 {[%emt 0:00:00][%cal Of6h5] Chess con chili.} 17. Qa4 $2 {[%emt 0:08:08][%mdl 8192]} (17. Kg2 $14 {keeps the upper hand.}) 17... Nh5 $1 $19 {[%emt 0:06:30]} (17... Nxc3 18. Qxa6 Nh5 19. Qf1 $16) 18. Rg1 {[%emt 0:00:00]} (18. Kg2 {was worth a try.} Ndf4+ (18... Nxc3 19. Qxa6 Re6 20. Nxh5 $18) 19. Bxf4 Nxf4+ 20. Kf2) 18... Nxc3 ({And not} 18... Qxh2+ 19. Rg2 Qh4 20. Qxa6 $16 (20. exd5 {is a self mate.} Re2+ 21. Kg1 Re1+ 22. Kf2 Rf1+ 23. Ke3 Qf4#)) 19. Qxa6 {[%emt 0:01:00]} Qxh2+ {[%emt 0:00:00]} 20. Rg2 {[%emt 0:00:30]} Nd1+ {Excellent horsemanship.} 21. Ke1 {[%emt 0:00:00]} Qxg2 {[%emt 0:00:00]} 22. Nxh5 {[%emt 0:00:00]} Qg1+ {[%emt 0:00:02]} (22... Qxf3 $19 23. Nxg7 Kxg7) 23. Qf1 $17 {[%emt 0:00:00]} Qxd4 {[%emt 0:00:04] Black is more active.} 24. Ra2 {[%emt 0:00:00][%cal Oh5g7]} Nc3 {[%emt 0:00:18]} 25. Rg2 {[%emt 0:00:00]} Qd1+ {[%emt 0:02:14]} ({Much less strong is} 25... Nxb1 26. Nxg7 Qc3+ 27. Kf2 $11) 26. Kf2 {[%emt 0:00:00] [#] Hoping for Qxd1.} Qxf1+ {[%emt 0:00:42]} 27. Kxf1 {[%emt 0:00:00]} Nxb1 {[%emt 0:00:10]} 28. Bb2 $2 {[%emt 0:03:29]} (28. Nxg7 $17 Kf8 29. Nxe8 Rxe8 30. a4) 28... g6 $19 {[%emt 0:00:51]} 29. Nf6+ {[%emt 0:00:11]} Kf8 {[%emt 0:00:01] And now ...Re6 would win.} 30. Nxh7+ {[%emt 0:00:48]} Ke7 {[%emt 0:00:01]} 31. Rc2 {[%emt 0:00:29]} c5 {[%emt 0:00:44][%cal Oe8h8]} 32. Nf6 {[%emt 0:00:32]} Rh8 {[%emt 0:00:40]} 33. Nd5+ {[%emt 0:00:13]} Kd6 {[%emt 0:00:20] Threatens to win with ...Rh1+.} 34. Ne3 {[%emt 0:00:47] [#]} Kc6 {[%emt 0:00:39]} 35. Nc4 $2 {[%emt 0:00:23]} (35. Bxh8 {was the crucial defense.} Rxh8 36. a4) 35... Rh1+ {[%emt 0:00:16]} 36. Kg2 {[%emt 0:00:16]} Rd1 {[%emt 0:00:07]} 37. a4 {[%emt 0:00:38]} Rad8 {[%emt 0:00:15]} 38. Bc1 {[%emt 0:00:09]} f6 {[%emt 0:00:12] Wards off Ne5+} 39. Ne3 {[%emt 0:00:09]} R1d2+ {[%emt 0:01:00]} 40. Bxd2 {[%emt 0:00:00]} Rxd2+ {[%emt 0:00:00]} 41. Rxd2 {[%emt 0:00:08]} Nxd2 {[%emt 0:00:17][%mdl 4096] Endgame. KN-KN} 42. Nd5 {[%emt 0:09:10]} f5 {[%emt 0:00:22]} 43. Ne7+ {[%emt 0:00:05]} Kd6 {[%emt 0:01:43]} 44. Nc8+ {[%emt 0:00:32]} Ke5 {[%emt 0:01:49] White must now prevent ...c4.} 45. exf5 {[%emt 0:00:35]} gxf5 {[%emt 0:00:46] ...c4 is the strong threat.} 46. Nxa7 {[%emt 0:00:08]} Kd4 {[%emt 0:00:29] aiming for ...c4.} 47. a5 {[%emt 0:06:18]} bxa5 {[%emt 0:00:10] Black mates.} 48. Nc6+ {[%emt 0:00:01]} Kd5 {[%emt 0:00:43]} 49. Nxa5 {[%emt 0:00:08]} c4 {[%emt 0:00:04]} 50. Kf2 {[%emt 0:00:33]} Nb3 {[%emt 0:00:14]} 51. Nb7 {[%emt 0:00:06]} c3 {[%emt 0:00:04]} 52. Ke2 {[%emt 0:00:12]} c2 {[%emt 0:00:05] Weighted Error Value: White=0.72/Black=0.31.  Loses game:     	White=2     	---        Missed win:     	---       	Black=1      Mistake:       	White=3     	Black=2      Inaccurate:     	White=3     	Black=2      OK:         	White=13    	Black=15     Best:        	White=5     	Black=8      Strong:       	---       	Black=1} 0-1

[Event "Romanian Championship 2024"]
[Site "Eforie Nord"]
[Date "2024.02.25"]
[Round "2.4"]
[White "Ghimpu, Samuel-Timotei"]
[Black "Nastase, Robert-Paul"]
[Result "0-1"]
[ECO "A13"]
[WhiteElo "2467"]
[BlackElo "2226"]
[Annotator "TA"]
[PlyCount "113"]
[EventDate "2024.02.24"]
[EventType "swiss"]
[EventCountry "ROU"]
[SourceTitle "playchess.com"]
[Source "ChessBase"]
[SourceQuality "1"]
[TimeControl "40/5400+30:900+30"]

{[%evp 27,113,33,41,35,39,21,39,14,22,18,40,49,45,14,146,133,183,160,241,241,234,82,63,60,58,65,89,4,2,-80,-102,-113,-94,-85,248,147,293,293,286,300,280,304,279,285,281,252,222,184,199,205,198,-39,-27,-36,-35,-32,-27,-30,-33,-36,-32,-25,-25,-31,-27,-43,-28,-21,-15,-16,-17,-15,-15,-24,-30,-55,-26,-33,0,-10,0,0,0,0,-8,-31,-31,-321]} 1. c4 {[%emt 0:00:20]} e6 {[%emt 0:03:45]} 2. g3 {[%emt 0:02:20]} d5 {[%emt 0:00:06]} 3. Bg2 {[%emt 0:00:12]} Nf6 {[%emt 0:00:03]} 4. Nf3 {[%emt 0:00:09]} c6 {[%emt 0:04:18]} 5. O-O {[%emt 0:01:02]} dxc4 {[%emt 0:00:03]} 6. a4 {[%emt 0:00:08] A13: English Opening: 1...e6.} Be7 {[%emt 0:12:40]} 7. Na3 {[%emt 0:06:25]} O-O {[%emt 0:00:27]} 8. Nxc4 {[%emt 0:00:31]} a5 {[%emt 0:09:37]} 9. d4 $146 {[%emt 0:01:50]} ({Predecessor:} 9. d3 b5 10. axb5 cxb5 11. Nfe5 Ra6 12. Na3 b4 13. Nac4 Bc5 14. e3 Qe7 15. d4 {1-0 Weber,S (2250)-Ambartsumova,K (2382) Titled Tuesday intern op 15 Mar Late blitz 2022 (4)}) 9... b5 {[%emt 0:00:40]} 10. Nce5 {[%emt 0:02:32]} Nd5 {[%emt 0:01:52]} 11. Bd2 {[%emt 0:10:12]} Ba6 {[%emt 0:01:54]} 12. Re1 {[%emt 0:08:19]} c5 {[%emt 0:07:20]} 13. dxc5 {[%emt 0:02:15]} Bxc5 {[%emt 0:00:47]} 14. Nd3 {[%emt 0:00:11]} (14. Rc1 $16 Qb6 15. Nd3) 14... Bb6 $14 {[%emt 0:05:05]} 15. axb5 {[%emt 0:00:48]} Bxb5 {[%emt 0:00:07]} 16. Qb3 {[%emt 0:00:03]} Qe8 {[%emt 0:02:52]} 17. e4 {[%emt 0:20:29]} Nc7 {[%emt 0:02:51]} 18. Rec1 {[%emt 0:04:00]} a4 {[%emt 0:04:10]} 19. Qc2 {[%emt 0:08:10]} Nba6 {[%emt 0:00:37]} 20. Nfe5 {[%emt 0:12:15]} Kh8 {[%emt 0:12:07]} (20... Rd8 $11 {remains equal.}) 21. Nc4 $1 $16 {[%emt 0:03:20]} Qb8 {[%emt 0:01:24]} (21... Rb8 $16 22. Nxb6 Rxb6) 22. Bf4 $18 {[%emt 0:08:49]} Bd4 {[%emt 0:00:05]} (22... Qa7 $16 23. Nxb6 Qxb6) 23. Bd6 $18 {[%emt 0:01:04]} Rd8 {[%emt 0:11:40] [#]} 24. Nce5 $2 {[%emt 0:00:13]} (24. e5 $1 $18 {and the rest is easy.}) 24... Bxd3 $16 {[%emt 0:01:03]} 25. Nxf7+ {[%emt 0:00:06]} Kg8 {[%emt 0:00:05]} 26. Qxd3 {[%emt 0:00:05]} Qxb2 {[%emt 0:01:17]} 27. Nxd8 {[%emt 0:05:29]} (27. Bxc7 $2 Bxf2+ (27... Kxf7 $2 28. Bxd8 Kg8 29. Qf1 $18) 28. Kh1 Rxd3 $19) ({White should try} 27. Rab1 $1 $16 {[%cal Rb1b2]} Qxf2+ 28. Kh1) 27... Rxd8 $11 {[%emt 0:00:05] [#]} 28. Qf3 {[%emt 0:01:23]} (28. Bxc7 $2 Bxf2+ (28... Qxf2+ $2 29. Kh1 $18) 29. Kh1 Rxd3 $19) (28. Be5 $1 $11 {keeps the balance.} Nc5 29. Bxd4 (29. Bxc7 $2 Qxf2+ 30. Kh1 Nxd3 $19) 29... Qxc1+ 30. Rxc1 Nxd3 31. Rc4) 28... Rxd6 $17 {[%emt 0:00:39]} 29. Rab1 {[%emt 0:00:01]} Rc6 {[%emt 0:00:01]} 30. Rd1 {[%emt 0:01:37] [#]} a3 $2 {[%emt 0:00:05][%mdl 8192]} (30... Qc3 $1 $17 {And now ...Qxf3 would win.} 31. e5 Qxf3 32. Bxf3 Rb6 (32... Rc4 33. Be2 $11) 33. Rxb6 Bxb6) 31. e5 {[%emt 0:00:59]} (31. Rxb2 $18 axb2 32. Bf1 (32. Rxd4 b1=Q+ 33. Bf1 Ne8 $11)) 31... Qxb1 {[%emt 0:05:05]} (31... Rc3 $16 32. Rxb2 Rxf3) 32. Rxb1 $18 {[%emt 0:00:01]} a2 {[%emt 0:00:06]} 33. Rd1 {[%emt 0:00:29]} Rb6 {[%emt 0:02:11] [#]} 34. Qd3 $1 {[%emt 0:00:37]} (34. Rxd4 $2 {is the wrong capture.} a1=Q+ (34... a1=B 35. Rd8+) 35. Rd1 Rb1 (35... Qxe5 36. Rd8+) 36. Rxb1 Qxb1+ $19) 34... a1=Q {[%emt 0:01:43]} 35. Rxa1 {[%emt 0:00:01]} (35. Qxd4 Qxd4 36. Rxd4 Rb1+ 37. Bf1 Nd5 $19) 35... Bxa1 {[%emt 0:00:06]} 36. Qd8+ {[%emt 0:00:03]} Kf7 {[%emt 0:00:07]} 37. Qd7+ {[%emt 0:00:14]} Kf8 {[%emt 0:00:07]} 38. Be4 {[%emt 0:00:33]} Bxe5 {[%emt 0:00:42] [#]} 39. f4 $2 {[%emt 0:01:31]} (39. Bxh7 Rd6 40. Qa4 (40. Qc8+ Ke7 $15) 40... Nc5 $17) (39. Qd8+ $1 $18 Kf7 40. Bxh7) 39... Bf6 {[%emt 0:04:18]} 40. Bxh7 {[%emt 0:01:44]} Be7 {[%emt 0:08:20]} 41. Qc8+ {[%emt 0:00:00]} Ne8 {[%emt 0:00:00]} 42. Bg6 {[%emt 0:00:02]} Nac7 {[%emt 0:00:00]} 43. h4 {[%emt 0:07:20]} Rd6 {[%emt 0:00:00]} 44. h5 {[%emt 0:02:19]} Rd8 {[%emt 0:00:00]} 45. Qb7 {[%emt 0:07:49]} Nd5 {[%emt 0:00:00]} 46. Qc6 {[%emt 0:00:00]} Nec7 {[%emt 0:02:40]} 47. Be4 {[%emt 0:00:00]} Nf6 {[%emt 0:01:17]} 48. Bf3 {[%emt 0:00:00]} Bd6 {[%emt 0:00:05]} 49. Qc2 {[%emt 0:00:00]} Ng8 {[%emt 0:05:57]} 50. Qg6 {[%emt 0:00:35]} Nh6 {[%emt 0:00:06]} 51. Be2 {[%emt 0:01:35]} Rd7 {[%emt 0:04:30]} 52. Kg2 {[%emt 0:00:38]} Re7 {[%emt 0:00:30]} 53. Bc4 {[%emt 0:00:20]} Rf7 {[%emt 0:01:24]} 54. Qd3 {[%emt 0:00:47]} Ke7 {[%emt 0:00:05]} 55. Qe4 {[%emt 0:00:30]} Nf5 {[%emt 0:00:39]} 56. Kh3 {[%emt 0:00:12]} Nxg3 {[%emt 0:00:17]} 57. Qg6 $2 {[%emt 0:01:23][%mdl 8192]} ({White must play} 57. Kxg3 $15 Rxf4 (57... Bxf4+ 58. Kg2 $14) 58. Qxf4) 0-1

[Event "Romanian Championship 2024"]
[Site "Eforie Nord"]
[Date "2024.02.25"]
[Round "2.5"]
[White "Daianu, Cristian-Clement"]
[Black "Nevednichy, Vladislav"]
[Result "1/2-1/2"]
[ECO "B65"]
[WhiteElo "2201"]
[BlackElo "2451"]
[Annotator "TA"]
[PlyCount "72"]
[EventDate "2024.02.24"]
[EventType "swiss"]
[EventCountry "ROU"]
[SourceTitle "playchess.com"]
[Source "ChessBase"]
[SourceQuality "1"]
[TimeControl "40/5400+30:900+30"]

{[%evp 22,72,58,44,50,0,62,41,22,20,167,20,19,7,7,0,-7,-127,-124,-403,-134,-146,-106,-129,-11,-44,-43,-41,-37,-33,0,0,0,0,19,-32,60,72,102,0,0,0,0,0,0,-8,-8,-8,0,0,0,0,0]} 1. e4 {[%emt 0:06:44]} c5 {[%emt 0:00:04]} 2. Nf3 {[%emt 0:00:06]} d6 {[%emt 0:00:18]} 3. d4 {[%emt 0:00:07]} cxd4 {[%emt 0:00:05]} 4. Nxd4 {[%emt 0:00:05]} Nf6 {[%emt 0:00:03]} 5. Nc3 {[%emt 0:00:09]} Nc6 {[%emt 0:00:20]} 6. Bg5 {[%emt 0:04:25]} e6 {[%emt 0:00:07]} 7. Qd3 {[%emt 0:00:47]} Be7 {[%emt 0:08:34]} 8. O-O-O {[%emt 0:03:53]} O-O {[%emt 0:04:25]} 9. h4 {[%emt 0:00:46]} Nxd4 {[%emt 0:06:38]} 10. Qxd4 {[%emt 0:01:16]} Qa5 {[%emt 0:02:11]} 11. Kb1 {[%emt 0:06:37]} h6 {[%emt 0:17:23]} 12. f4 {[%emt 0:13:10][%cal Od4e3]} Rd8 {[%emt 0:13:16]} (12... hxg5 $2 13. hxg5 Ng4 14. Be2 $16) 13. Qe3 {[%emt 0:13:30][%cal Of1d3]} b5 {[%emt 0:19:09] [#]} (13... Bd7 $11) 14. Bd3 $1 {[%emt 0:25:39][%cal Oe4e5] Black must now prevent e5! White is more active.} b4 $1 {[%emt 0:01:25] White is slightly better.} (14... hxg5 $2 15. hxg5 Ng4 16. Qh3 $18) 15. Ne2 {[%emt 0:04:08] And now g4 would win.} Ba6 {[%emt 0:05:49] [#]} (15... hxg5 $2 16. hxg5 b3 17. cxb3 $18) (15... e5 $1 $11 {and Black is okay.}) 16. Nd4 {[%emt 0:08:14]} Bxd3 $11 {[%emt 0:02:47]} (16... hxg5 $2 17. hxg5 $18) 17. Rxd3 {[%emt 0:00:14] Threatens to win with Bxf6.} (17. Qxd3 $5 Rac8 (17... hxg5 $2 18. hxg5 Ng4 19. e5 $18) 18. g4 $11) 17... Rac8 {[%emt 0:01:31][%cal Oa5b6]} (17... hxg5 $2 18. hxg5 g6 19. Qh3 $18 (19. gxf6 Bxf6 20. Nc6 Qb5 $18)) 18. Bxf6 {[%emt 0:04:39]} Bxf6 {[%emt 0:00:12]} 19. Nf3 {[%emt 0:00:07]} (19. g4 $11) 19... Rc6 $1 $17 {[%emt 0:04:52]} 20. Rhd1 $2 {[%emt 0:03:08][%mdl 8192] [#]} (20. Rdd1 $17) 20... Ra6 $2 {[%emt 0:02:01]} (20... Bxb2 $1 $19 {has better winning chances. ...Bc3 is the strong threat.} 21. e5 (21. Kxb2 $2 Rxc2+ 22. Kxc2 Qxa2+ 23. Kc1 Rc8+ $19) 21... d5) 21. a3 {[%emt 0:00:08]} Rb8 {[%emt 0:03:52]} 22. Rb3 {[%emt 0:00:19][%cal Oc2c3]} Rab6 {[%emt 0:00:09]} (22... Rbb6 $17 23. Qe1 bxa3 24. Qxa5 Rxa5 25. Rxb6 axb6 (25... a2+ 26. Ka1 $15) 26. bxa3 Rxa3) 23. e5 {[%emt 0:02:24]} dxe5 {[%emt 0:04:11]} 24. fxe5 {[%emt 0:00:08]} Be7 {[%emt 0:00:17]} 25. Rd7 {[%emt 0:01:07]} Kf8 {[%emt 0:01:19]} 26. Qd2 {[%emt 0:00:42]} Qa6 {[%emt 0:02:32]} 27. axb4 {[%emt 0:00:55]} Qf1+ {[%emt 0:00:00]} (27... Rxb4 $2 28. Rxb4 Re8 29. Rbb7 Qf1+ 30. Qd1 Qxd1+ 31. Rxd1 $18) (27... Ke8 $5) 28. Qd1 {[%emt 0:00:23]} (28. Ka2 $11) 28... Qxg2 {[%emt 0:00:11]} (28... Qxd1+ $15 29. Rxd1 Rxb4) 29. Rxa7 $14 {[%emt 0:00:12]} Rd8 {[%emt 0:00:36] [#]} (29... Rxb4 $2 30. Rxb4 Bxb4 31. Rb7 $18) (29... Bxb4 $2 30. c3 $18) 30. Rd7 {[%emt 0:00:30]} ({White should play} 30. Rd3 $1 $16 {[%cal Rd3d8]} Rbb8 31. b5 Rxd3 32. Qxd3) 30... Rxd7 $11 {[%emt 0:00:16] The position is equal.} 31. Qxd7 {[%emt 0:00:02]} Qf1+ {[%emt 0:00:10]} (31... Rxb4 32. Qc8+) 32. Ka2 {[%emt 0:00:07] Threatening mate with Qc8+.} Ra6+ {[%emt 0:00:18]} 33. Ra3 {[%emt 0:00:04] White threatens Qc8+ and mate. Some like it hot} Qc4+ {[%emt 0:00:18]} (33... Rxa3+ 34. bxa3 g5 35. hxg5 (35. Nd2 Qd1 $17) 35... Qxf3 36. gxh6) 34. Kb1 $1 {[%emt 0:00:15]} Qf1+ {[%emt 0:00:08]} (34... Bxh4 35. Rxa6 Qf1+ 36. Ka2 Qxa6+ 37. Kb3) 35. Ka2 {[%emt 0:00:05] White wants to mate with Qc8+.} Qc4+ {[%emt 0:00:04]} (35... Rxa3+ 36. bxa3 g5 37. hxg5 (37. Nd2 Qd1 $17) 37... Qxf3 38. gxh6) 36. Kb1 $1 {[%emt 0:00:11]} Qf1+ {[%emt 0:02:24] Weighted Error Value: White=0.47/Black=0.43.  Loses game:     	White=1     	---        Missed win:     	---       	Black=1      Mistake:       	White=4     	Black=4      Inaccurate:     	White=1     	Black=2      OK:         	White=4     	Black=9      Best:        	White=4     	---        Strong:       	White=2     	Black=2} ({Much worse is} 36... Bxh4 $6 37. Rxa6 Qf1+ 38. Ka2 Qxa6+ 39. Kb3 $16) 1/2-1/2

[Event "Romanian Championship 2024"]
[Site "Eforie Nord"]
[Date "2024.02.25"]
[Round "2.6"]
[White "Bulmaga, Irina"]
[Black "Vilcu, Matei-Stefan"]
[Result "1-0"]
[ECO "B96"]
[WhiteElo "2439"]
[BlackElo "2176"]
[Annotator "TA"]
[PlyCount "73"]
[EventDate "2024.02.24"]
[EventType "swiss"]
[EventCountry "ROU"]
[SourceTitle "playchess.com"]
[Source "ChessBase"]
[SourceQuality "1"]
[TimeControl "40/5400+30:900+30"]

{[%evp 17,73,25,35,31,44,42,48,24,17,25,31,25,16,24,28,30,32,34,35,-14,0,0,-20,-39,-27,-29,-18,-29,-20,-67,0,7,0,0,0,0,130,141,125,138,175,173,139,34,33,38,635,609,1212,1127,29991,29992,29993,45,29994,29995,29995,29996]} 1. e4 {[%emt 0:00:04]} c5 {[%emt 0:00:06]} 2. Nf3 {[%emt 0:00:07]} d6 {[%emt 0:00:04]} 3. d4 {[%emt 0:00:18]} cxd4 {[%emt 0:00:04]} 4. Nxd4 {[%emt 0:00:06]} Nf6 {[%emt 0:00:04]} 5. Nc3 {[%emt 0:00:08]} a6 {[%emt 0:00:03]} 6. Bg5 {[%emt 0:00:27]} e6 {[%emt 0:00:13]} 7. f4 {[%emt 0:00:34]} Nbd7 {[%emt 0:01:10]} 8. Qe2 {[%emt 0:00:34]} Qc7 {[%emt 0:00:07]} 9. O-O-O {[%emt 0:01:33]} b5 {[%emt 0:00:31]} 10. a3 {[%emt 0:00:09]} Bb7 {[%emt 0:00:13]} 11. g4 {[%emt 0:03:23][%cal Bg2g4,Bg4g5][%mdl 32]} Be7 {[%emt 0:00:20]} 12. Bxf6 {[%emt 0:04:56] White is slightly better.} Bxf6 {[%emt 0:08:28]} 13. g5 {[%emt 0:01:27]} Bxd4 {[%emt 0:00:50]} 14. Rxd4 {[%emt 0:00:08]} e5 {[%emt 0:00:09]} 15. fxe5 {[%emt 0:00:23]} Nxe5 {[%emt 0:00:18]} 16. Qd1 {[%emt 0:01:01][%cal Of1b5]} Rd8 {[%emt 0:13:01]} 17. h4 {[%emt 0:05:01]} O-O {[%emt 0:01:25]} 18. Bh3 {[%emt 0:12:34]} (18. h5 $14) 18... Nc4 {[%emt 0:12:07][%cal Oc4a3]} 19. Qf3 {[%emt 0:09:24]} Qc5 {[%emt 0:03:58]} 20. Rhd1 {[%emt 0:05:39] [#]} Nxa3 $1 {[%emt 0:22:01]} 21. bxa3 {[%emt 0:07:49]} Qxa3+ {[%emt 0:00:09]} 22. Kd2 $1 {[%emt 0:00:57] Strongly threatening Qd3.} b4 {[%emt 0:01:11]} 23. Rb1 {[%emt 0:01:25]} (23. Rf1 $11 bxc3+ (23... Qxc3+ 24. Qxc3 bxc3+ 25. Kxc3 $15) 24. Qxc3 Qxc3+ 25. Kxc3) 23... Qxc3+ {[%emt 0:03:46]} (23... bxc3+ 24. Qxc3 Qxc3+ 25. Kxc3 $14) ({Black should play} 23... d5 $1 $15 24. e5 (24. Rbxb4 $2 dxe4 25. Qe3 Qxb4 $19) 24... bxc3+ (24... Qxc3+ 25. Qxc3 bxc3+ 26. Kd3 $11) 25. Qxc3 Qe7) 24. Qxc3 $11 {[%emt 0:00:47]} bxc3+ {[%emt 0:00:02]} 25. Kxc3 {[%emt 0:01:15]} Bc8 {[%emt 0:04:42]} 26. Bf1 {[%emt 0:00:32]} f5 {[%emt 0:18:52]} (26... Rfe8 $11 {keeps the balance.}) 27. Bc4+ $1 $16 {[%emt 0:08:38][%mdl 1024] White has strong compensation.} Kh8 {[%emt 0:00:01] [#]} 28. e5 {[%emt 0:00:56][%cal Be4e5,Be5e6][%mdl 544]} f4 {[%emt 0:05:39]} (28... dxe5 $2 29. Rxd8 Rxd8 30. Rb8) (28... d5 29. Bxd5) 29. e6 $36 {[%emt 0:22:27][%mdl 2048] And now e7 would win. White is in control.} ({But not} 29. exd6 f3 $16) 29... Rde8 {[%emt 0:02:32]} 30. Re4 {[%emt 0:05:02] White is much more active.} (30. Rxd6 $16 {[%cal Oc3d4] Threatens to win with Kd4!} f3 31. h5 (31. Bxa6 Bxe6 32. Re1 Bh3 $11)) 30... Re7 $14 {[%emt 0:01:29]} 31. Rb8 {[%emt 0:02:38]} f3 {[%emt 0:01:28][%mdl 8192] [#]} (31... Kg8 $14) 32. Rf4 $3 $18 {[%emt 0:00:50][%mdl 512]} Rfe8 {[%emt 0:00:53] [#]} (32... Rg8 33. Rf7) 33. Bxa6 $1 {[%emt 0:03:04][%mdl 512]} Bxe6 {[%emt 0:00:27] [#]} (33... Rxe6 34. Rxc8) 34. Rf8+ $1 {[%emt 0:00:16]} Rxf8 {[%emt 0:00:32]} 35. Rxf8+ {[%emt 0:00:02]} Bg8 {[%emt 0:00:01] [#]} 36. Bc4 $1 {[%emt 0:00:10][%csl Gc4][%cal Rf8g8] Prevents Rf7.} ({Weaker is} 36. Rxf3 g6 $14) 36... d5 {[%emt 0:00:12]} 37. Bxd5 {[%emt 0:00:09] Weighted Error Value: White=0.11 (very precise) /Black=0.58.  Loses game:     	---       	Black=1      Mistake:       	White=3     	Black=2      Inaccurate:     	---       	Black=1      OK:         	White=7     	Black=8      Best:        	---       	Black=2      Strong:       	White=2     	---        Brilliant:      	White=2     	Black=1} 1-0

[Event "Romanian Championship 2024"]
[Site "Eforie Nord"]
[Date "2024.02.25"]
[Round "2.7"]
[White "Nastore, Pavel-Alexandru"]
[Black "Magold, Filip"]
[Result "0-1"]
[ECO "A43"]
[WhiteElo "2182"]
[BlackElo "2400"]
[Annotator "TA"]
[PlyCount "60"]
[EventDate "2024.02.24"]
[EventType "swiss"]
[EventCountry "ROU"]
[SourceTitle "playchess.com"]
[Source "ChessBase"]
[SourceQuality "1"]
[TimeControl "40/5400+30:900+30"]

{[%evp 14,60,-20,-30,-46,-34,-38,-32,-27,-22,-35,-13,-34,-30,-13,-58,-13,-28,-25,-29,-15,-87,-103,-114,-118,-157,-156,-145,-108,-154,-142,-140,-139,-233,-229,-224,-221,-215,-224,-278,-271,-313,-310,-319,-306,-631,-653,-738,-737]} 1. e4 {[%emt 0:00:10]} g6 {[%emt 0:00:17]} 2. d4 {[%emt 0:00:33]} Bg7 {[%emt 0:00:37]} 3. Nf3 {[%emt 0:04:28]} d6 {[%emt 0:00:22]} 4. h3 {[%emt 0:00:25]} Nf6 {[%emt 0:00:19]} 5. Nc3 {[%emt 0:00:10]} O-O {[%emt 0:01:09]} 6. Be2 {[%emt 0:00:27]} c5 {[%emt 0:00:07]} 7. d5 {[%emt 0:03:29]} b5 {[%emt 0:00:05]} 8. Bxb5 {[%emt 0:12:29] [#]} Nxe4 $1 {[%emt 0:00:08]} 9. Nxe4 {[%emt 0:05:15] And now a4 would win.} Qa5+ {[%emt 0:00:06]} 10. Nc3 {[%emt 0:03:29]} Bxc3+ {[%emt 0:00:06] Black is slightly better.} 11. bxc3 {[%emt 0:00:02]} Qxb5 {[%emt 0:00:08]} 12. Nd2 $1 {[%emt 0:42:34]} Qa4 {[%emt 0:00:05]} 13. O-O {[%emt 0:00:41]} Bf5 {[%emt 0:00:05][%cal Ob8d7]} 14. Nb3 {[%emt 0:04:18]} f6 {[%emt 0:00:04]} 15. Re1 {[%emt 0:02:00][%cal Og2g4] [#] Threatens to win with g4!} Rf7 {[%emt 0:15:07]} 16. Qe2 {[%emt 0:03:42]} Bc8 {[%emt 0:15:05]} 17. Be3 {[%emt 0:08:46]} (17. Qe4 $11 Qxe4 18. Rxe4) 17... Nd7 $17 {[%emt 0:00:31]} 18. Red1 {[%emt 0:03:34]} Nb6 {[%emt 0:00:26]} 19. Qf3 {[%emt 0:02:20]} Bf5 {[%emt 0:00:38]} 20. Rd2 {[%emt 0:00:56]} a5 {[%emt 0:03:22]} 21. Qd1 {[%emt 0:00:37]} ({Better is} 21. Bh6) 21... Qc4 {[%emt 0:00:40]} 22. Nc1 {[%emt 0:00:34]} Be4 {[%emt 0:01:19][%cal Rb6d5] Black has more active pieces.} 23. f3 {[%emt 0:00:17]} (23. Bh6 $17 {keeps fighting.}) 23... Qxc3 $19 {[%emt 0:00:06]} 24. Nd3 {[%emt 0:00:22]} Bf5 {[%emt 0:18:29]} 25. Bf2 {[%emt 0:00:21]} Nxd5 {[%emt 0:01:11]} 26. g4 {[%emt 0:00:44]} Be6 {[%emt 0:03:46]} 27. Rb1 {[%emt 0:00:18]} Nb4 {[%emt 0:00:39]} 28. a4 {[%emt 0:00:57]} f5 {[%emt 0:02:24] Hoping for ...fxg4.} 29. Nf4 $2 {[%emt 0:00:31]} (29. g5) 29... Ba2 {[%emt 0:01:02]} 30. Rxb4 {[%emt 0:00:29]} axb4 {[%emt 0:00:17] Weighted Error Value: White=0.39/Black=0.07 (flawless) .  Mistake:       	White=4     	---        Inaccurate:     	White=1     	Black=1      OK:         	White=6     	Black=11     Best:        	White=1     	Black=1      Strong:       	White=1     	---} 0-1